bitfinex/quotes_BTCUSD_20251012
["timestamp","ask_amount","ask_price","bid_price","bid_amount"]
[1760285923533,7.32586427,113940.0,113930.0,1e-08]
[1760285924755,5.87246917,113940.0,113930.0,1e-08]
[1760285924948,7.21463087,113940.0,113930.0,1e-08]
[1760285925074,7.21563087,113940.0,113930.0,1e-08]
[1760285925474,7.21663087,113940.0,113930.0,1e-08]
[1760285926321,7.24368521,113940.0,113930.0,1e-08]
[1760285926733,5.77652353,113940.0,113930.0,1e-08]
[1760285926932,7.24368521,113940.0,113930.0,1e-08]
[1760285927552,7.79215771,113940.0,113930.0,1e-08]
[1760285927963,7.82368051,113940.0,113930.0,1e-08]
[1760285928386,7.79920799,113940.0,113930.0,1e-08]
[1760285929205,7.80120799,113940.0,113930.0,1e-08]
[1760285929419,7.80020799,113940.0,113930.0,1e-08]
[1760285929663,7.79217578,113940.0,113930.0,1e-08]
[1760285929864,7.76402388,113940.0,113930.0,1e-08]
[1760285930069,7.79417578,113940.0,113930.0,1e-08]
[1760285930287,7.37068519,113940.0,113930.0,1e-08]
[1760285930693,7.39417578,113940.0,113930.0,1e-08]
[1760285930899,7.79417578,113940.0,113930.0,1e-08]
[1760285931306,7.69417579,113940.0,113930.0,1e-08]
[1760285931622,7.85211764,113940.0,113930.0,1e-08]
[1760285931918,7.83835106,113940.0,113930.0,1e-08]
[1760285932119,7.81486047,113940.0,113930.0,1e-08]
[1760285932328,7.83832238,113940.0,113930.0,1e-08]
[1760285932746,7.80679958,113940.0,113930.0,1e-08]
[1760285933355,7.83832238,113940.0,113930.0,1e-08]
[1760285934172,7.81486047,113940.0,113930.0,1e-08]
[1760285934398,7.83831103,113940.0,113930.0,1e-08]
[1760285934600,7.73831104,113940.0,113930.0,1e-08]
[1760285935014,7.85207887,113940.0,113930.0,1e-08]
[1760285935421,7.23898513,113940.0,113930.0,1e-08]
[1760285935595,6.87553457,113940.0,113930.0,1e-08]
[1760285936033,7.24568647,113940.0,113930.0,1e-08]
[1760285936481,7.24368647,113940.0,113930.0,1e-08]
[1760285937154,7.26713703,113940.0,113930.0,1e-08]
[1760285937452,7.24368647,113940.0,113930.0,1e-08]
[1760285937657,7.24168647,113940.0,113930.0,1e-08]
[1760285937883,7.24268647,113940.0,113930.0,1e-08]
[1760285938024,7.24368647,113940.0,113930.0,1e-08]
[1760285938467,7.29213702,113940.0,113930.0,1e-08]
[1760285938672,7.32365982,113940.0,113930.0,1e-08]
[1760285938897,7.29213702,113940.0,113930.0,1e-08]
[1760285939205,7.26713703,113940.0,113930.0,1e-08]
[1760285939406,7.26613703,113940.0,113930.0,1e-08]
[1760285939726,7.26713703,113940.0,113930.0,1e-08]
[1760285939940,7.24368647,113940.0,113930.0,1e-08]
[1760285940178,5.74637289,113940.0,113930.0,1e-08]
[1760285940381,7.21353457,113940.0,113930.0,1e-08]
[1760285940536,7.21253457,113940.0,113930.0,1e-08]
[1760285940940,7.26713703,113940.0,113930.0,1e-08]
[1760285941145,5.42075695,113940.0,113930.0,1e-08]
[1760285941350,5.39160505,113940.0,113930.0,1e-08]
[1760285941583,5.28347678,113940.0,113930.0,0.17554639]
[1760285941796,5.28347678,113940.0,113930.0,1e-08]
[1760285941797,6.79325846,113940.0,113930.0,1e-08]
[1760285942093,5.32609678,113940.0,113930.0,1e-08]
[1760285942294,5.28247678,113940.0,113930.0,1e-08]
[1760285942515,0.0082358,113940.0,113930.0,0.29055412]
[1760285942734,4.973e-05,113940.0,113930.0,0.37848639]
[1760285943336,0.17558071,113940.0,113930.0,0.10722001]
[1760285943535,0.0082358,113940.0,113930.0,0.37848639]
[1760285943791,4.973e-05,113940.0,113930.0,0.37848639]
[1760285944966,4.973e-05,113940.0,113930.0,0.28276639]
[1760285945170,4.973e-05,113940.0,113930.0,0.37848639]
[1760285945578,1.73351409,113940.0,113930.0,1e-08]
[1760285945778,6.77185206,113940.0,113930.0,1e-08]
[1760285946151,6.79064271,113940.0,113930.0,1e-08]
[1760285949538,6.81409327,113940.0,113930.0,1e-08]
[1760285950144,6.84561607,113940.0,113930.0,1e-08]
[1760285950341,5.74508213,113940.0,113930.0,1e-08]
[1760285950542,0.09728882,113940.0,113930.0,0.21689639]
[1760285950743,0.0082358,113940.0,113930.0,0.37740639]
[1760285950947,0.18376678,113940.0,113930.0,0.28168639]
[1760285951401,0.2261498,113940.0,113930.0,0.28168639]
[1760285951574,1.30323318,113940.0,113930.0,0.28168639]
[1760285952331,0.2261498,113940.0,113930.0,0.21689639]
[1760285952533,0.2765498,113940.0,113930.0,0.21689639]
[1760285952735,0.2728198,113940.0,113930.0,0.21689639]
[1760285953354,0.05061882,113940.0,113930.0,0.37740639]
[1760285953564,0.02702645,113940.0,113930.0,0.37740639]
[1760285953977,0.0082358,113940.0,113930.0,1.45448977]
[1760285954647,0.0082358,113940.0,113930.0,1.49668977]
[1760285955051,0.0082358,113940.0,113930.0,0.41960639]
[1760285955226,0.0082358,113940.0,113930.0,1.49668977]
[1760285955455,4.973e-05,113940.0,113930.0,1.49668977]
[1760285955659,4.973e-05,113940.0,113930.0,0.32388639]
[1760285956027,4.973e-05,113940.0,113930.0,0.41960639]
[1760285956641,4.973e-05,113940.0,113930.0,0.00100001]
[1760285956642,6.73287409,113940.0,113930.0,0.00100001]
[1760285957017,1.84511788,113940.0,113930.0,0.00100001]
[1760285957221,6.84511788,113940.0,113930.0,1e-08]
[1760285957431,6.82152551,113940.0,113930.0,0.00100001]
[1760285957634,6.82154153,113940.0,113930.0,0.00100001]
[1760285957834,1.82154153,113940.0,113930.0,0.00100001]
[1760285957975,6.82154153,113940.0,113930.0,1e-08]
[1760285958320,6.82254153,113940.0,113930.0,1e-08]
[1760285958896,6.86966739,113940.0,113930.0,1e-08]
[1760285959296,6.79091808,113940.0,113930.0,1e-08]
[1760285959712,5.79070593,113940.0,113930.0,1e-08]
[1760285959915,6.86778931,113940.0,113930.0,1e-08]
[1760285960263,6.86778931,113940.0,113900.0,1e-08]
[1760285960264,5.54572911,113910.0,113900.0,1e-08]
[1760285960491,6.75207538,113910.0,113900.0,1e-08]
[1760285960705,5.73768191,113910.0,113900.0,1e-08]
[1760285960915,6.81476529,113910.0,113900.0,1e-08]
[1760285961543,6.81576529,113910.0,113900.0,1e-08]
[1760285961726,6.81476529,113910.0,113900.0,1e-08]
[1760285962175,6.81576529,113910.0,113900.0,1e-08]
[1760285962911,6.81676529,113910.0,113900.0,1e-08]
[1760285965421,6.84828538,113910.0,113900.0,1e-08]
[1760285965744,6.82464532,113910.0,113900.0,1e-08]
[1760285965907,1.84828569,113910.0,113900.0,0.00169897]
[1760285966107,6.84828569,113910.0,113900.0,0.00169897]
[1760285966462,5.77120231,113910.0,113900.0,0.00169897]
[1760285966732,6.84828569,113910.0,113900.0,0.00169897]
[1760285967272,1.8167656,113910.0,113900.0,0.00169897]
[1760285967470,6.8167656,113910.0,113900.0,0.00169897]
[1760285967876,5.16211065,113910.0,113900.0,0.00169897]
[1760285968056,6.41477124,113910.0,113900.0,0.00169897]
[1760285968500,6.75477124,113910.0,113900.0,0.00169897]
[1760285968728,6.41377124,113910.0,113900.0,0.00169897]
[1760285968859,6.75377124,113910.0,113900.0,0.00169897]
[1760285969742,6.75277124,113910.0,113900.0,0.00169897]
[1760285969939,6.78292314,113910.0,113900.0,0.00169897]
[1760285970497,1.78292314,113910.0,113900.0,0.00169897]
[1760285970646,6.81476857,113910.0,113900.0,1e-08]
[1760285971362,7.92473166,113910.0,113900.0,1e-08]
[1760285971519,8.02473165,113910.0,113900.0,1e-08]
[1760285971748,7.92573166,113910.0,113900.0,1e-08]
[1760285971959,8.02573165,113910.0,113900.0,1e-08]
[1760285972165,8.07301178,113910.0,113900.0,1e-08]
[1760285972463,8.02573165,113910.0,113900.0,1e-08]
[1760285972877,8.07401178,113910.0,113900.0,1e-08]
[1760285973085,8.04149169,113910.0,113900.0,1e-08]
[1760285973342,8.04249169,113910.0,113900.0,1e-08]
[1760285974305,3.04249169,113910.0,113900.0,1e-08]
[1760285974510,8.04249169,113910.0,113900.0,1e-08]
[1760285974720,8.05626373,113910.0,113900.0,1e-08]
[1760285975643,3.05626373,113910.0,113900.0,1e-08]
[1760285975812,8.05626373,113910.0,113900.0,1e-08]
[1760285976212,0.17563888,113870.0,113860.0,1e-08]
[1760285976412,0.17563888,113870.0,113820.0,0.07202362]
[1760285976413,0.5458525,113830.0,113820.0,0.07202362]
[1760285976648,6.76050588,113830.0,113820.0,0.07202362]
[1760285976946,6.76050588,113830.0,113820.0,0.0004]
[1760285977150,5.69233853,113830.0,113820.0,0.0004]
[1760285977347,6.76942191,113830.0,113820.0,0.00089931]
[1760285977733,0.39712603,113830.0,113820.0,0.04224931]
[1760285977912,0.39712603,113830.0,113820.0,0.21796535]
[1760285978109,0.38821,113830.0,113820.0,0.21796535]
[1760285978314,0.5639106,113830.0,113820.0,0.21796535]
[1760285978537,0.5648006,113830.0,113820.0,0.04224931]
[1760285978978,1.72972398,113830.0,113820.0,0.00089931]
[1760285979236,6.72972398,113830.0,113820.0,0.00089931]
[1760285979439,6.76872668,113830.0,113820.0,0.00189931]
[1760285979858,6.76872668,113830.0,113820.0,0.00089931]
[1760285979986,5.5736514,113830.0,113820.0,0.00089931]
[1760285980184,6.73857478,113830.0,113820.0,0.00089931]
[1760285980847,5.5648006,113830.0,113820.0,0.00089931]
[1760285981009,6.72972398,113830.0,113820.0,0.00089931]
[1760285981961,1.72972398,113830.0,113820.0,0.00543365]
[1760285982190,6.72972398,113830.0,113820.0,0.00543365]
[1760285982387,6.72972398,113830.0,113820.0,0.00643365]
[1760285982713,1.72972398,113830.0,113820.0,0.00543365]
[1760285983107,6.72972398,113830.0,113820.0,0.00543365]
[1760285983455,5.6526406,113830.0,113820.0,0.00543365]
[1760285983656,6.72972398,113830.0,113820.0,0.00543365]
[1760285983859,1.72972398,113830.0,113820.0,0.00543365]
[1760285984054,6.73862188,113830.0,113820.0,0.00543365]
[1760285984274,6.76877378,113830.0,113820.0,0.00543365]
[1760285985267,5.6916904,113830.0,113820.0,0.00543365]
[1760285985489,6.76877378,113830.0,113820.0,0.00543365]
[1760285986101,1.76877378,113830.0,113820.0,0.00543365]
[1760285986308,6.76877378,113830.0,113820.0,0.00543365]
[1760285986757,1.76877378,113830.0,113820.0,0.00543365]
[1760285986963,5.3215385,113830.0,113820.0,0.00543365]
[1760285987167,6.39862188,113830.0,113820.0,0.00543365]
[1760285987572,5.3215385,113830.0,113820.0,0.00543365]
[1760285987776,6.39852409,113830.0,113820.0,0.00543365]
[1760285988134,6.73852409,113830.0,113820.0,0.00543365]
[1760285988333,6.73852409,113830.0,113820.0,0.00643365]
[1760285988790,6.73852409,113830.0,113820.0,0.00543365]
[1760285989357,5.66144071,113830.0,113820.0,0.00543365]
[1760285989562,6.73852409,113830.0,113820.0,0.00543365]
[1760285989715,0.66144071,113830.0,113820.0,0.00543365]
[1760285989897,6.73852409,113830.0,113820.0,0.00543365]
[1760285990109,0.23767228,113840.0,113820.0,0.37681969]
[1760285990110,0.04821,113840.0,113820.0,0.37681969]
[1760285990287,0.04821,113850.0,113840.0,0.17568517]
[1760285990513,0.04821,113860.0,113840.0,0.27891517]
[1760285990697,0.04821,113860.0,113850.0,0.22610942]
[1760285990698,0.22386431,113860.0,113850.0,0.22610942]
[1760285990937,5.0,113860.0,113850.0,0.27987974]
[1760285991322,5.17564066,113870.0,113860.0,0.17565431]
[1760285991522,5.17564066,113870.0,113860.0,0.10313]
[1760285991523,0.17564066,113870.0,113860.0,0.10313]
[1760285991865,0.22384346,113880.0,113870.0,0.17563888]
[1760285992074,0.17562346,113880.0,113870.0,0.27984888]
[1760285992285,0.22505346,113880.0,113870.0,0.04243]
[1760285992491,0.28584346,113880.0,113870.0,0.04292931]
[1760285992808,0.22387832,113900.0,113880.0,0.17562346]
[1760285993019,5.0,113890.0,113880.0,0.21707346]
[1760285993238,5.0,113890.0,113880.0,0.04145]
[1760285993452,0.22416804,113890.0,113880.0,0.21707346]
[1760285993655,0.23271367,113900.0,113890.0,0.17560804]
[1760285993656,0.22380484,113900.0,113890.0,0.17560804]
[1760285993858,1.39181822,113900.0,113880.0,0.04145]
[1760285994060,0.22451804,113890.0,113880.0,0.04145]
[1760285994260,0.22451804,113890.0,113880.0,0.17562346]
[1760285994503,0.17562346,113880.0,113870.0,0.2185643]
[1760285994748,0.17562346,113880.0,113870.0,0.37288819]
[1760285994986,0.17560804,113890.0,113880.0,0.17562346]
[1760285995184,0.17560804,113890.0,113880.0,0.27885346]
[1760285995458,0.17560804,113890.0,113880.0,0.27985346]
[1760285995889,0.17560804,113890.0,113880.0,0.10323]
[1760285996106,0.17560804,113890.0,113880.0,0.27885346]
[1760285996519,0.51559331,113900.0,113890.0,0.17560804]
[1760285996723,0.51559331,113900.0,113890.0,0.04243]
[1760285996931,0.17560804,113890.0,113880.0,0.04245]
[1760285997133,0.22482804,113890.0,113880.0,0.21807346]
[1760285997560,0.56502331,113900.0,113880.0,0.27985346]
[1760285997758,0.17560804,113890.0,113880.0,0.28085346]
[1760285997962,0.5156,113900.0,113890.0,0.21803804]
[1760285998168,0.34,113900.0,113890.0,0.27981804]
[1760285998369,0.34,113900.0,113890.0,0.10421]
[1760285998568,0.17560804,113890.0,113880.0,0.04145]
[1760285998786,0.22503804,113890.0,113880.0,0.21707096]
[1760285998987,0.04943,113890.0,113880.0,0.04245]
[1760285999300,0.31383804,113890.0,113880.0,0.002]
[1760285999496,0.31383804,113890.0,113880.0,0.001]
[1760285999799,1.642106,113900.0,113880.0,0.10391298]
[1760285999800,0.4195819,113900.0,113880.0,0.10391298]
[1760285999971,0.56502263,113900.0,113890.0,0.04243]
[1760286000174,0.56502263,113900.0,113890.0,0.27836804]
[1760286000175,0.17559262,113900.0,113890.0,0.27836804]
[1760286000375,0.22268262,113900.0,113890.0,0.10276]
[1760286000581,0.2427626,113910.0,113890.0,0.27836804]
[1760286000761,0.38943,113910.0,113900.0,0.04135]
[1760286000962,0.51557721,113910.0,113900.0,0.13894]
[1760286001190,0.17559262,113900.0,113890.0,0.21803804]
[1760286001551,0.56266721,113910.0,113890.0,0.37595804]
[1760286002017,0.17559262,113900.0,113890.0,0.37595804]
[1760286002440,0.56266721,113910.0,113890.0,0.37595804]
[1760286002653,0.56266721,113910.0,113890.0,0.37695804]
[1760286002860,0.17559262,113900.0,113890.0,0.27936804]
[1760286003067,0.17559262,113900.0,113890.0,0.27836804]
[1760286003324,0.22318262,113900.0,113880.0,0.22585438]
[1760286003542,0.22318262,113900.0,113880.0,0.21707346]
[1760286003543,1.12417338,113890.0,113880.0,0.21707346]
[1760286003768,0.22269804,113890.0,113880.0,0.21707346]
[1760286004422,0.56459804,113890.0,113880.0,0.04145]
[1760286004621,0.56459804,113890.0,113870.0,0.00049931]
[1760286004622,0.34,113880.0,113870.0,0.00049931]
[1760286004769,0.56050346,113880.0,113870.0,0.00049931]
[1760286004969,0.65714346,113880.0,113870.0,0.00049931]
[1760286005181,1.73422684,113880.0,113870.0,0.17613819]
[1760286005635,0.65714346,113880.0,113870.0,0.17783782]
[1760286005986,5.68729536,113880.0,113870.0,0.00219894]
[1760286006417,7.84146212,113880.0,113870.0,0.00219894]
[1760286006583,7.15670162,113880.0,113870.0,0.00219894]
[1760286006805,2.15670162,113880.0,113870.0,0.00319894]
[1760286007046,0.31978731,113880.0,113870.0,0.23916782]
[1760286007250,1.04841354,113920.0,113870.0,0.23916782]
[1760286007251,0.02361727,113940.0,113900.0,0.00877963]
[1760286007420,0.02361727,113940.0,113930.0,1.64495264]
[1760286007421,0.00819475,113940.0,113930.0,1.64495264]
[1760286007619,0.00819185,113970.0,113960.0,0.17550017]
[1760286007851,0.07410258,113980.0,113970.0,0.17548477]
[1760286008061,0.00819185,113980.0,113970.0,1.74713103]
[1760286008281,0.480618,113960.0,113930.0,0.04191]
[1760286008490,0.04092,113940.0,113930.0,0.2890772]
[1760286008688,0.04092,113940.0,113930.0,0.28922701]
[1760286008892,5.5,113960.0,113950.0,0.17551557]
[1760286009118,5.0,113960.0,113950.0,0.17551557]
[1760286009301,0.17581,113950.0,113930.0,0.21760592]
[1760286009543,0.14023,113950.0,113940.0,0.17553098]
[1760286009681,0.1713119,113950.0,113940.0,0.17553098]
[1760286010167,5.0301519,113940.0,113930.0,0.00014981]
[1760286010380,6.72171914,113940.0,113930.0,0.00014981]
[1760286010823,6.81591914,113940.0,113930.0,0.00014981]
[1760286011698,6.64038816,113940.0,113930.0,0.00014981]
[1760286011917,1.54964626,113960.0,113940.0,0.17553098]
[1760286012138,0.04709,113970.0,113950.0,0.21742557]
[1760286012371,0.04709,113970.0,113960.0,0.17450017]
[1760286013054,1.60955626,113970.0,113960.0,0.17450017]
[1760286013296,1.60955626,113970.0,113950.0,0.17551168]
[1760286013496,0.14015,113970.0,113960.0,0.17550017]
[1760286013661,0.5277,113970.0,113960.0,0.17550017]
[1760286013847,0.5578519,113970.0,113960.0,0.17550017]
[1760286014250,0.34,113970.0,113960.0,0.27774017]
[1760286014476,5.0,113980.0,113970.0,0.17548477]
[1760286014674,5.34,113980.0,113970.0,0.17548477]
[1760286014874,2.15517754,113980.0,113970.0,0.17548477]
[1760286015132,5.0,113970.0,113960.0,0.17550017]
[1760286015352,0.04709,114000.0,113970.0,0.184259]
[1760286015536,1.58831988,114010.0,113990.0,0.21736398]
[1760286015682,1.58831988,114010.0,114000.0,0.17543859]
[1760286016083,1.85669626,114010.0,114000.0,0.17543859]
[1760286016280,0.34,114000.0,113990.0,0.17545398]
[1760286016488,0.6619432,114010.0,114000.0,0.17543859]
[1760286016489,1.51669626,114010.0,114000.0,0.17543859]
[1760286016691,0.04729,114010.0,114000.0,0.17543859]
[1760286016896,1.54684816,114010.0,114000.0,0.17543859]
[1760286017113,1.54684816,114010.0,114000.0,0.27767859]
[1760286017116,0.0002,114010.0,114000.0,0.27767859]
[1760286017562,0.0002,114010.0,114000.0,0.37526859]
[1760286018210,0.0002,114010.0,114000.0,0.27767859]
[1760286018417,0.1756232,114010.0,114000.0,0.04291]
[1760286018624,2.15575136,114010.0,114000.0,0.001]
[1760286018803,0.51543859,114000.0,113990.0,0.17545398]
[1760286019027,2.12512485,114000.0,113980.0,0.21737099]
[1760286019225,0.34,113980.0,113970.0,0.00014981]
[1760286019352,2.03196564,113980.0,113970.0,0.00014981]
[1760286019544,7.20207754,113980.0,113970.0,0.00014981]
[1760286020987,5.73367128,113980.0,113970.0,0.00014981]
[1760286021250,7.20407754,113980.0,113970.0,0.00014981]
[1760286022378,7.12507754,113980.0,113970.0,0.00014981]
[1760286022583,0.51646938,113980.0,113970.0,0.17563458]
[1760286022809,2.09392564,113980.0,113970.0,0.00014981]
[1760286023025,0.62551938,113980.0,113970.0,0.00014981]
[1760286023233,0.51646938,113980.0,113970.0,0.21754458]
[1760286023486,0.31706241,114000.0,113980.0,0.17545672]
[1760286023487,1.67731677,114000.0,113980.0,0.17545672]
[1760286023688,1.70089062,114010.0,113990.0,0.29423937]
[1760286023908,1.98484485,114000.0,113990.0,0.21636398]
[1760286024120,0.17543859,114000.0,113990.0,0.17445398]
[1760286024344,1.73104252,114010.0,114000.0,0.17543859]
[1760286024579,1.70089062,114010.0,113990.0,0.31395398]
[1760286024801,0.34,114000.0,113990.0,0.21636398]
[1760286025012,0.34,114000.0,113990.0,0.31395398]
[1760286025221,0.51543859,114000.0,113990.0,0.21636398]
[1760286025391,0.34,114000.0,113990.0,0.27669398]
[1760286025607,0.51543859,114000.0,113990.0,0.21636398]
[1760286026804,0.51543859,114000.0,113990.0,0.17445398]
[1760286027212,0.17545398,113990.0,113980.0,0.22614018]
[1760286027579,2.06458485,114000.0,113980.0,0.22614018]
[1760286027793,0.17545398,113990.0,113980.0,0.28647018]
[1760286028380,0.17545398,113990.0,113980.0,0.22614018]
[1760286028587,0.17545398,113990.0,113980.0,0.27770938]
[1760286028798,0.51543859,114000.0,113990.0,0.17545398]
[1760286029030,0.0002,114010.0,114000.0,0.17543859]
[1760286029252,0.0002,114010.0,114000.0,0.37526859]
[1760286030980,0.0002,114010.0,114000.0,0.20083]
[1760286031186,0.0002,114010.0,114000.0,0.10907]
[1760286031401,0.0002,114010.0,114000.0,0.28450859]
[1760286031601,0.1756232,114010.0,114000.0,0.37696859]
[1760286031810,0.0002,114010.0,114000.0,0.37796859]
[1760286032208,0.1756232,114010.0,114000.0,0.37696859]
[1760286032449,0.0002,114010.0,114000.0,0.37596859]
[1760286032867,0.0002,114010.0,114000.0,0.37696859]
[1760286034108,0.0002,114010.0,114000.0,0.37796859]
[1760286036199,0.0002,114010.0,114000.0,1.84737485]
[1760286036439,0.0002,114010.0,114000.0,0.37796859]
[1760286036640,0.0002,114010.0,114000.0,1.84737485]
[1760286036848,0.0002,114010.0,114000.0,0.37796859]
[1760286037057,0.0002,114010.0,114000.0,1.84737485]
[1760286037303,0.0002,114010.0,114000.0,2.11052485]
[1760286038136,0.0002,114030.0,114000.0,2.11052485]
[1760286038137,0.0002,114030.0,114020.0,0.17540782]
[1760286038341,0.0002,114030.0,114020.0,0.48042782]
[1760286038551,0.0002,114030.0,114020.0,0.63904782]
[1760286039379,0.00070011,114030.0,114020.0,0.63904782]
[1760286039592,0.00070011,114030.0,114020.0,2.10845408]
[1760286039833,0.00070011,114030.0,114020.0,0.46364]
[1760286040018,0.00070011,114030.0,114020.0,0.63904782]
[1760286040019,0.17609255,114030.0,114020.0,0.63904782]
[1760286040237,1.69440881,114030.0,114020.0,0.26311]
[1760286040439,2.15375071,114030.0,114020.0,0.26411]
[1760286040862,7.15375071,114030.0,114020.0,0.26311]
[1760286041073,7.15375071,114030.0,114020.0,0.26411]
[1760286041279,7.15375071,114030.0,114020.0,0.26511]
[1760286041492,7.15375071,114030.0,114020.0,0.26411]
[1760286041691,7.15375071,114030.0,114020.0,0.26311]
[1760286042537,0.54559049,114000.0,113990.0,0.04216]
[1760286042766,7.12352675,114000.0,113990.0,0.04216]
[1760286042972,7.15292675,114000.0,113990.0,0.04216]
[1760286043179,5.17548477,113970.0,113950.0,0.04191]
[1760286043390,0.51548287,113980.0,113960.0,0.24712379]
[1760286043643,0.51548287,113980.0,113960.0,0.21741017]
[1760286043644,0.17548477,113970.0,113960.0,0.21741017]
[1760286043845,1.69290103,113970.0,113950.0,0.21742439]
[1760286044047,0.22349477,113970.0,113950.0,0.21742439]
[1760286044468,0.22349477,113970.0,113950.0,0.2185742]
[1760286044469,1.69290103,113970.0,113950.0,0.2185742]
[1760286044679,1.64490643,113960.0,113950.0,0.00114981]
[1760286044901,1.69339643,113960.0,113950.0,0.17666538]
[1760286045096,2.03339643,113960.0,113950.0,0.17666538]
[1760286045450,2.03291643,113960.0,113950.0,0.17666538]
[1760286045856,2.12074643,113960.0,113950.0,0.00114981]
[1760286046078,2.12074643,113960.0,113950.0,0.00214981]
[1760286046244,2.12074643,113960.0,113950.0,0.00114981]
[1760286046453,0.51550017,113960.0,113950.0,0.10963981]
[1760286046820,1.98490643,113960.0,113950.0,0.04405981]
[1760286047020,2.03416643,113960.0,113950.0,0.00214981]
[1760286047259,2.12075643,113960.0,113950.0,0.00214981]
[1760286047669,0.38926,113960.0,113950.0,0.24424538]
[1760286047901,0.04024,113960.0,113950.0,0.00214981]
[1760286048075,0.21534017,113960.0,113950.0,0.17766538]
[1760286048308,2.03234423,113970.0,113960.0,0.17550017]
[1760286048509,0.34,113970.0,113960.0,0.17550017]
[1760286048729,0.51548477,113970.0,113960.0,0.17550017]
[1760286048934,0.34,113970.0,113960.0,0.28399017]
[1760286049140,1.68467308,114010.0,113990.0,0.17545398]
[1760286049356,1.77455696,114020.0,114010.0,0.1754232]
[1760286049552,0.1754232,114010.0,114000.0,0.21734859]
[1760286049763,0.1754232,114010.0,114000.0,0.04191]
[1760286049967,0.17543859,114000.0,113980.0,0.22615284]
[1760286050169,1.69416485,114000.0,113980.0,0.21737923]
[1760286050370,0.22475859,114000.0,113980.0,0.31301904]
[1760286050508,0.17545398,113990.0,113980.0,0.21752904]
[1760286050715,0.22475859,114000.0,113980.0,0.37959904]
[1760286050915,0.22475859,114000.0,113990.0,0.21736398]
[1760286050916,0.54559049,114000.0,113990.0,0.21736398]
[1760286051117,0.34,114000.0,113990.0,0.28394398]
[1760286051473,0.51543859,114000.0,113990.0,0.28394398]
[1760286051804,0.34,114000.0,113990.0,0.37943398]
[1760286053055,0.51543859,114000.0,113990.0,0.38043398]
[1760286053325,0.34,114000.0,113990.0,0.37943398]
[1760286053754,0.51543859,114000.0,113990.0,0.10849]
[1760286053957,0.51543859,114000.0,113990.0,0.04291]
[1760286054103,0.34,114000.0,113990.0,0.21836398]
[1760286054327,0.56475859,114000.0,113990.0,0.001]
[1760286054531,2.15726675,114000.0,113990.0,0.001]
[1760286054956,2.15726675,114000.0,113990.0,0.002]
[1760286055406,0.20560588,113990.0,113980.0,0.04205981]
[1760286056003,0.20560588,113990.0,113980.0,0.37959919]
[1760286056430,0.17545398,113990.0,113980.0,0.37959919]
[1760286056635,0.17545398,113990.0,113980.0,0.28410919]
[1760286057075,0.17545398,113990.0,113980.0,0.00014981]
[1760286057287,0.17545398,113990.0,113980.0,0.28410919]
[1760286057956,0.17545398,113990.0,113980.0,0.37959919]
[1760286058178,2.01499675,114000.0,113990.0,0.17545398]
[1760286058396,0.17545398,113990.0,113980.0,0.04305981]
[1760286058612,7.15728214,113990.0,113980.0,0.00114981]
[1760286058867,7.12713024,113990.0,113980.0,0.00114981]
[1760286059112,7.12713024,113990.0,113980.0,0.10963981]
[1760286059113,0.34,113990.0,113980.0,0.10963981]
[1760286059318,0.34,113990.0,113980.0,0.38059919]
[1760286059559,0.51545398,113990.0,113980.0,0.28410919]
[1760286059763,0.17543859,114000.0,113990.0,0.17544329]
[1760286059986,0.34,114000.0,113990.0,0.27775329]
[1760286060208,0.34,114000.0,113990.0,0.37578329]
[1760286060423,1.6941341,114020.0,114010.0,0.1754232]
[1760286060632,0.17542401,114010.0,114000.0,0.21733834]
[1760286060875,1.70317716,114030.0,114010.0,0.1754232]
[1760286061108,0.17540782,114020.0,114010.0,0.2173332]
[1760286061310,0.0002,114030.0,114020.0,0.37574782]
[1760286061550,1.46960626,114030.0,114010.0,0.04191]
[1760286061774,0.1754232,114010.0,113990.0,0.22613488]
[1760286061993,0.34,114010.0,114000.0,0.15843]
[1760286062207,0.5154232,114010.0,114000.0,0.03577859]
[1760286062425,0.34,114010.0,114000.0,0.21616718]
[1760286062701,0.34049981,114010.0,114000.0,0.21616718]
[1760286062917,0.00049981,114010.0,114000.0,0.21616718]
[1760286063986,0.00049981,114010.0,114000.0,1.68557344]
[1760286064220,0.0002,114030.0,114020.0,1.64481408]
[1760286064412,0.0002,114030.0,114020.0,0.17540782]
[1760286064555,0.0002,114030.0,114020.0,0.00495]
[1760286064556,0.17559244,114030.0,114020.0,0.00495]
[1760286064756,0.0002,114030.0,114020.0,0.17540782]
[1760286064943,0.0002,114030.0,114020.0,0.18035782]
[1760286065139,0.17559244,114030.0,114020.0,0.18035782]
[1760286065434,1.76097832,114030.0,114000.0,0.03777859]
[1760286065598,0.17541895,114020.0,114000.0,0.21221718]
[1760286065805,0.04642,114020.0,114010.0,0.1754232]
[1760286066149,0.17540782,114020.0,114010.0,0.1803732]
[1760286066792,0.23078206,114030.0,114020.0,0.17540782]
[1760286066793,0.3402,114030.0,114020.0,0.17540782]
[1760286067010,0.51559244,114030.0,114020.0,0.17540782]
[1760286067618,0.3402,114030.0,114020.0,0.18035782]
[1760286067826,0.0002,114030.0,114020.0,0.18344782]
[1760286068235,0.0002,114030.0,114020.0,0.18035782]
[1760286068442,1.70580408,114030.0,114000.0,0.03577859]
[1760286068663,1.29751359,114020.0,114000.0,0.21121718]
[1760286068876,1.63752897,114010.0,113990.0,0.04191]
[1760286069085,0.17543859,114000.0,113990.0,0.21786379]
[1760286069292,0.5618432,114010.0,113990.0,0.21786379]
[1760286069531,0.34,114010.0,114000.0,0.17543859]
[1760286069750,0.5154232,114010.0,114000.0,0.17543859]
[1760286069958,0.51543859,114000.0,113990.0,0.04240981]
[1760286070169,1.63754436,114000.0,113990.0,0.04340981]
[1760286070411,1.82795626,114000.0,113990.0,0.00149981]
[1760286070625,7.90364203,114000.0,113990.0,0.00049981]
[1760286071068,1.62132244,113970.0,113960.0,0.07162362]
[1760286071284,1.66774244,113970.0,113960.0,0.07177343]
[1760286071504,6.82800244,113970.0,113960.0,0.00014981]
[1760286071746,0.65284667,113970.0,113960.0,0.00014981]
[1760286071967,0.04642,113990.0,113960.0,0.01467481]
[1760286072177,0.17545398,113990.0,113980.0,0.17546938]
[1760286072387,0.22184528,114010.0,113990.0,0.17545398]
[1760286072609,0.22184528,114010.0,113970.0,0.17548124]
[1760286072610,1.07568577,114000.0,113970.0,0.17548124]
[1760286072835,1.35833706,114000.0,113980.0,0.17546756]
[1760286073055,1.66769896,114000.0,113990.0,0.001]
[1760286073273,0.54559049,114000.0,113990.0,0.18086077]
[1760286073478,0.20559049,114000.0,113990.0,0.18120398]
[1760286073683,1.30630167,114010.0,114000.0,0.17543859]
[1760286073684,0.1841958,114010.0,114000.0,0.17543859]
[1760286074162,0.5241958,114010.0,114000.0,0.17543859]
[1760286074385,0.34,114000.0,113990.0,0.17545398]